[Event "MČR juniorů a juniorek v rapid šachu 2023"]
[Site "Czech Republic"]
[Date "2023.09.24"]
[Round "7.30"]
[White "Beran, Jakub"]
[Black "Bela, Lukas"]
[Result "1-0"]
[TimeControl "20 min + 5 sec per move"]
[WhiteFideId "23727071"]
[BlackFideId "23738545"]
[WhiteElo "1645"]
[BlackElo "1297"]

1. c4 {[%clk 00:20:08]} e5 {[%clk 00:20:05]} {[%emt 00:00:06]} 2. Nc3 {[%clk
00:20:11]} {[%emt 00:00:01]} d6 {[%clk 00:20:07]} {[%emt 00:00:04]} 3. g3
{[%clk 00:19:57]} {[%emt 00:00:18]} Nc6 {[%clk 00:20:06]} {[%emt 00:00:06]} 4.
Bg2 {[%clk 00:20:00]} {[%emt 00:00:01]} f5 {[%clk 00:20:05]} {[%emt 00:00:07]}
5. e3 {[%clk 00:19:41]} {[%emt 00:00:24]} Nf6 {[%clk 00:19:59]} {[%emt
00:00:11]} 6. d4 {[%clk 00:19:39]} {[%emt 00:00:08]} e4 {[%clk 00:19:48]}
{[%emt 00:00:15]} 7. f3 {[%clk 00:19:28]} {[%emt 00:00:15]} d5 {[%clk
00:19:29]} {[%emt 00:00:26]} 8. cxd5 {[%clk 00:19:27]} {[%emt 00:00:06]} Nxd5
{[%clk 00:19:32]} {[%emt 00:00:02]} 9. fxe4 {[%clk 00:19:24]} {[%emt 00:00:08]}
Nxc3 {[%clk 00:19:22]} {[%emt 00:00:15]} 10. bxc3 {[%clk 00:19:24]} {[%emt
00:00:04]} Qg5 {[%clk 00:18:38]} {[%emt 00:00:49]} 11. e5 {[%clk 00:18:23]}
{[%emt 00:01:03]} Qd8 {[%clk 00:17:23]} {[%emt 00:01:23]} 12. Nf3 {[%clk
00:17:51]} {[%emt 00:00:37]} Be7 {[%clk 00:16:35]} {[%emt 00:00:54]} 13. O-O
{[%clk 00:17:26]} {[%emt 00:00:29]} O-O {[%clk 00:16:32]} {[%emt 00:00:09]} 14.
d5 {[%clk 00:17:02]} {[%emt 00:00:26]} Na5 {[%clk 00:16:15]} {[%emt 00:00:24]}
15. d6 {[%clk 00:17:00]} {[%emt 00:00:08]} cxd6 {[%clk 00:16:06]} {[%emt
00:00:14]} 16. Ba3 {[%clk 00:16:45]} {[%emt 00:00:19]} Nc4 {[%clk 00:15:57]}
{[%emt 00:00:15]} 17. Qd5+ {[%clk 00:16:43]} {[%emt 00:00:04]} Kh8 {[%clk
00:15:50]} {[%emt 00:00:14]} 18. Qxc4 {[%clk 00:16:46]} {[%emt 00:00:02]} Qb6
{[%clk 00:14:41]} {[%emt 00:01:14]} 19. Qd4 {[%clk 00:15:16]} {[%emt 00:01:26]}
Rd8 {[%clk 00:13:24]} {[%emt 00:01:31]} 20. Qxb6 {[%clk 00:12:59]} {[%emt
00:02:22]} axb6 {[%clk 00:13:28]} {[%emt 00:00:02]} 21. Bxd6 {[%clk 00:13:02]}
{[%emt 00:00:02]} Bxd6 {[%clk 00:13:31]} {[%emt 00:00:01]} 22. exd6 {[%clk
00:13:06]} {[%emt 00:00:02]} Rxd6 {[%clk 00:13:35]} {[%emt 00:00:01]} 23. Nd4
{[%clk 00:12:58]} {[%emt 00:00:10]} g6 {[%clk 00:13:29]} {[%emt 00:00:14]} 24.
e4 {[%clk 00:12:46]} {[%emt 00:00:15]} Ra5 {[%clk 00:12:31]} {[%emt 00:01:04]}
25. Rfe1 {[%clk 00:11:53]} {[%emt 00:00:57]} Re5 {[%clk 00:10:54]} {[%emt
00:01:43]} 26. exf5 {[%clk 00:11:04]} {[%emt 00:00:54]} Rxe1+ {[%clk 00:10:56]}
{[%emt 00:00:03]} 27. Rxe1 {[%clk 00:11:07]} {[%emt 00:00:01]} gxf5 {[%clk
00:10:38]} {[%emt 00:00:24]} 28. Re8+ {[%clk 00:11:05]} {[%emt 00:00:07]} Kg7
{[%clk 00:10:41]} {[%emt 00:00:01]} 29. Rxc8 {[%clk 00:11:07]} {[%emt
00:00:04]} Kg6 {[%clk 00:10:15]} {[%emt 00:00:31]} 30. Rf8 {[%clk 00:10:37]}
{[%emt 00:00:33]} Rd7 {[%clk 00:09:25]} {[%emt 00:00:57]} 31. Rxf5 {[%clk
00:09:48]} {[%emt 00:00:53]} Rxd4 {[%clk 00:07:53]} {[%emt 00:01:37]} 32. cxd4
{[%clk 00:09:51]} {[%emt 00:00:01]} Kxf5 {[%clk 00:07:57]} {[%emt 00:00:02]} 33.
Bxb7 {[%clk 00:09:54]} {[%emt 00:00:02]} Ke6 {[%clk 00:07:57]} {[%emt
00:00:04]} 34. a4 {[%clk 00:09:22]} {[%emt 00:00:37]} Kd6 {[%clk 00:07:52]}
{[%emt 00:00:10]} 35. d5 {[%clk 00:09:24]} {[%emt 00:00:03]} Kc7 {[%clk
00:07:49]} {[%emt 00:00:09]} 36. Bc6 {[%clk 00:09:28]} {[%emt 00:00:01]} h6
{[%clk 00:07:51]} {[%emt 00:00:03]} 37. Kg2 {[%clk 00:09:31]} {[%emt 00:00:02]}
1-0

[Event "MČR juniorů a juniorek v rapid šachu 2023"]
[Site "Czech Republic"]
[Date "2023.09.24"]
[Round "7.32"]
[White "Macova, Marketa"]
[Black "Martinkovicova, Nela"]
[Result "1-0"]
[TimeControl "20 min + 5 sec per move"]
[WhiteFideId "23715588"]
[BlackFideId "23715596"]
[WhiteElo "1228"]
[BlackElo "1049"]

1. e4 {[%clk 00:20:09]} c6 {[%clk 00:19:37]} {[%emt 00:00:33]} 2. d4 {[%clk
00:20:11]} {[%emt 00:00:03]} d5 {[%clk 00:19:37]} {[%emt 00:00:05]} 3. exd5
{[%clk 00:20:14]} {[%emt 00:00:02]} cxd5 {[%clk 00:19:39]} {[%emt 00:00:03]} 4.
Nc3 {[%clk 00:20:17]} {[%emt 00:00:02]} Nf6 {[%clk 00:19:31]} {[%emt 00:00:14]}
5. Bg5 {[%clk 00:20:19]} {[%emt 00:00:03]} Bf5 {[%clk 00:19:11]} {[%emt
00:00:24]} 6. Nf3 {[%clk 00:20:13]} {[%emt 00:00:11]} g6 {[%clk 00:19:02]}
{[%emt 00:00:15]} 7. Bb5+ {[%clk 00:19:46]} {[%emt 00:00:33]} Nbd7 {[%clk
00:17:34]} {[%emt 00:01:32]} 8. Bxf6 {[%clk 00:18:12]} {[%emt 00:01:39]} exf6
{[%clk 00:17:17]} {[%emt 00:00:21]} 9. Qe2+ {[%clk 00:15:57]} {[%emt 00:02:21]}
Be6 {[%clk 00:14:25]} {[%emt 00:02:58]} 10. Nxd5 {[%clk 00:15:20]} {[%emt
00:00:41]} Qa5+ {[%clk 00:12:26]} {[%emt 00:02:04]} 11. b4 {[%clk 00:13:29]}
{[%emt 00:01:57]} Qd8 {[%clk 00:12:10]} {[%emt 00:00:21]} 12. O-O {[%clk
00:11:48]} {[%emt 00:01:45]} Bg7 {[%clk 00:11:37]} {[%emt 00:00:37]} 13. Nf4
{[%clk 00:09:41]} {[%emt 00:02:12]} Qe7 {[%clk 00:06:03]} {[%emt 00:05:40]} 14.
Rfe1 {[%clk 00:06:41]} {[%emt 00:03:04]} O-O {[%clk 00:05:00]} {[%emt
00:01:08]} 15. Nxe6 {[%clk 00:05:41]} {[%emt 00:01:05]} fxe6 {[%clk 00:04:45]}
{[%emt 00:00:20]} 16. Qxe6+ {[%clk 00:05:31]} {[%emt 00:00:15]} Qxe6 {[%clk
00:04:41]} {[%emt 00:00:09]} 17. Rxe6 {[%clk 00:05:33]} {[%emt 00:00:04]} Rad8
{[%clk 00:04:30]} {[%emt 00:00:16]} 18. Re7 {[%clk 00:04:56]} {[%emt 00:00:42]}
Rf7 {[%clk 00:04:03]} {[%emt 00:00:32]} 19. Bc4 {[%clk 00:04:32]} {[%emt
00:00:30]} Rdf8 {[%clk 00:01:31]} {[%emt 00:02:37]} 20. Rxd7 {[%clk 00:04:19]}
{[%emt 00:00:18]} Bh6 {[%clk 00:01:08]} {[%emt 00:00:27]} 21. Rxb7 {[%clk
00:03:49]} {[%emt 00:00:35]} Kg7 {[%clk 00:01:05]} {[%emt 00:00:08]} 22. Bxf7
{[%clk 00:03:45]} {[%emt 00:00:09]} Rxf7 {[%clk 00:01:05]} {[%emt 00:00:05]} 23.
Rxf7+ {[%clk 00:03:48]} {[%emt 00:00:02]} Kxf7 {[%emt 00:00:04]} 24. Kf1 {[%clk
00:03:41]} {[%emt 00:00:11]} f5 {[%clk 00:01:06]} {[%emt 00:00:07]} 25. Ke2
{[%clk 00:03:39]} {[%emt 00:00:07]} Kf6 {[%clk 00:01:07]} {[%emt 00:00:03]} 26.
c4 {[%clk 00:03:34]} {[%emt 00:00:10]} Bf8 {[%clk 00:01:07]} {[%emt 00:00:05]}
27. b5 {[%clk 00:03:32]} {[%emt 00:00:08]} Ke6 {[%clk 00:01:06]} {[%emt
00:00:05]} 28. Kd3 {[%clk 00:03:32]} {[%emt 00:00:05]} Kd7 {[%clk 00:01:00]}
{[%emt 00:00:12]} 29. Re1 {[%clk 00:03:32]} {[%emt 00:00:04]} Bd6 {[%clk
00:00:45]} {[%emt 00:00:19]} 30. c5 {[%clk 00:03:29]} {[%emt 00:00:10]} Bc7
{[%clk 00:00:39]} {[%emt 00:00:09]} 31. h3 {[%clk 00:03:24]} {[%emt 00:00:11]}
h6 {[%clk 00:00:36]} {[%emt 00:00:08]} 32. Ne5+ {[%clk 00:03:26]} {[%emt
00:00:02]} Kd8 {[%clk 00:00:26]} {[%emt 00:00:15]} 33. Nxg6 {[%clk 00:03:27]}
{[%emt 00:00:05]} Kd7 {[%clk 00:00:28]} {[%emt 00:00:02]} 34. Ne5+ {[%clk
00:03:20]} {[%emt 00:00:12]} Kd8 {[%clk 00:00:31]} {[%emt 00:00:03]} 35. Nf7+
{[%clk 00:03:22]} {[%emt 00:00:03]} Kd7 {[%clk 00:00:30]} {[%emt 00:00:05]} 36.
Nxh6 {[%clk 00:03:25]} {[%emt 00:00:02]} Ba5 {[%clk 00:00:16]} {[%emt
00:00:19]} 37. Re2 {[%clk 00:03:14]} {[%emt 00:00:15]} Bc7 {[%clk 00:00:16]}
{[%emt 00:00:06]} 38. Nxf5 {[%clk 00:03:16]} {[%emt 00:00:04]} Kd8 {[%clk
00:00:16]} {[%emt 00:00:04]} 39. Re7 {[%clk 00:03:07]} {[%emt 00:00:13]} Kc8
{[%clk 00:00:14]} {[%emt 00:00:08]} 40. Rxc7+ {[%clk 00:03:10]} {[%emt
00:00:02]} Kxc7 {[%clk 00:00:17]} {[%emt 00:00:02]} 41. Ke4 {[%clk 00:03:12]}
{[%emt 00:00:04]} Kd7 {[%clk 00:00:21]} {[%emt 00:00:01]} 42. Ke5 {[%clk
00:03:15]} {[%emt 00:00:02]} Kd8 {[%clk 00:00:24]} {[%emt 00:00:02]} 43. Kd6
{[%clk 00:03:18]} {[%emt 00:00:01]} Kc8 {[%clk 00:00:27]} {[%emt 00:00:02]} 44.
h4 {[%clk 00:03:18]} {[%emt 00:00:05]} a6 {[%clk 00:00:28]} {[%emt 00:00:05]}
45. bxa6 {[%clk 00:03:20]} {[%emt 00:00:02]} Kb8 {[%clk 00:00:30]} {[%emt
00:00:03]} 46. h5 {[%clk 00:03:23]} {[%emt 00:00:03]} Ka7 {[%clk 00:00:33]}
{[%emt 00:00:02]} 47. h6 {[%clk 00:03:26]} Kxa6 {[%clk 00:00:36]} {[%emt
00:00:02]} 48. h7 {[%clk 00:03:30]} {[%emt 00:00:01]} Kb5 {[%clk 00:00:36]}
{[%emt 00:00:06]} 49. h8=Q {[%clk 00:03:30]} {[%emt 00:00:04]} Kc4 {[%clk
00:00:38]} {[%emt 00:00:04]} 50. Ne3+ {[%clk 00:03:31]} {[%emt 00:00:03]} Kc3
{[%clk 00:00:40]} {[%emt 00:00:04]} 51. d5+ {[%clk 00:03:29]} {[%emt 00:00:07]}
Kb4 {[%clk 00:00:41]} {[%emt 00:00:04]} 52. Kc6 {[%clk 00:03:28]} {[%emt
00:00:06]} Ka3 {[%clk 00:00:41]} {[%emt 00:00:04]} 53. Qc3+ {[%clk 00:03:29]}
{[%emt 00:00:04]} Kxa2 {[%clk 00:00:41]} {[%emt 00:00:05]} 54. Nc4 {[%clk
00:03:22]} {[%emt 00:00:12]} Kb1 {[%emt 00:00:04]} 55. Qb2# {[%emt 00:00:01]}
1-0

[Event "MČR juniorů a juniorek v rapid šachu 2023"]
[Site "Czech Republic"]
[Date "2023.09.24"]
[Round "8.1"]
[White "Hurtik, Matej"]
[Black "Ocelak, Jakub"]
[Result "1/2-1/2"]
[TimeControl "20 min + 5 sec per move"]
[WhiteFideId "397997"]
[BlackFideId "23707933"]
[WhiteElo "1930"]
[BlackElo "2025"]

1. e4 {[%clk 00:20:05]} {[%emt 00:00:03]} e5 {[%clk 00:20:08]} {[%emt
00:00:02]} 2. Nf3 {[%clk 00:20:06]} {[%emt 00:00:05]} Nc6 {[%clk 00:20:11]}
{[%emt 00:00:02]} 3. Bc4 {[%clk 00:20:09]} {[%emt 00:00:02]} Bc5 {[%clk
00:20:06]} {[%emt 00:00:10]} 4. b4 Bxb4 {[%clk 00:20:09]} 5. c3 {[%clk
00:20:16]} Be7 {[%clk 00:19:57]} {[%emt 00:00:17]} 6. d4 {[%clk 00:20:19]}
{[%emt 00:00:02]} Na5 {[%clk 00:20:01]} {[%emt 00:00:02]} 7. Be2 {[%clk
00:20:12]} {[%emt 00:00:13]} d6 {[%clk 00:19:42]} {[%emt 00:00:23]} 8. O-O
{[%clk 00:19:51]} {[%emt 00:00:25]} Nf6 {[%clk 00:19:33]} {[%emt 00:00:15]} 9.
Qa4+ {[%clk 00:19:22]} {[%emt 00:00:34]} c6 {[%clk 00:19:37]} {[%emt 00:00:01]}
10. dxe5 {[%clk 00:19:26]} {[%emt 00:00:02]} dxe5 {[%clk 00:18:52]} {[%emt
00:00:49]} 11. Nxe5 {[%clk 00:19:03]} {[%emt 00:00:27]} O-O {[%clk 00:16:30]}
{[%emt 00:02:28]} 12. Bf4 {[%clk 00:19:05]} {[%emt 00:00:01]} Be6 {[%clk
00:15:15]} {[%emt 00:01:22]} 13. Rd1 {[%clk 00:18:52]} {[%emt 00:00:18]} Qb6
{[%clk 00:14:55]} {[%emt 00:00:25]} 14. Nd2 {[%clk 00:18:51]} {[%emt 00:00:06]}
Qc5 {[%clk 00:11:32]} {[%emt 00:03:28]} 15. Rab1 {[%clk 00:10:45]} {[%emt
00:08:11]} Qa3 {[%clk 00:10:38]} {[%emt 00:00:59]} 16. Qc2 {[%clk 00:10:32]}
{[%emt 00:00:17]} b6 {[%clk 00:09:32]} {[%emt 00:01:12]} 17. Rb2 {[%clk
00:08:35]} {[%emt 00:02:02]} b5 {[%clk 00:08:08]} {[%emt 00:01:30]} 18. Nb3
{[%clk 00:04:19]} {[%emt 00:04:20]} Nxb3 {[%clk 00:05:45]} {[%emt 00:02:29]} 19.
axb3 {[%clk 00:04:21]} {[%emt 00:00:02]} Qa6 {[%clk 00:05:47]} {[%emt
00:00:03]} 20. h3 {[%clk 00:02:46]} {[%emt 00:01:41]} 1/2-1/2

[Event "MČR juniorů a juniorek v rapid šachu 2023"]
[Site "Czech Republic"]
[Date "2023.09.24"]
[Round "8.2"]
[White "Pressler, Tobias"]
[Black "Cibulka, Josef"]
[Result "1-0"]
[TimeControl "20 min + 5 sec per move"]
[WhiteFideId "23715359"]
[BlackFideId "23708042"]
[WhiteElo "1859"]
[BlackElo "1922"]

1. e4 {[%clk 00:20:05]} {[%emt 00:02:05]} e5 {[%clk 00:20:04]} {[%emt
00:00:09]} 2. Nf3 {[%clk 00:20:12]} {[%emt 00:00:02]} Nc6 {[%clk 00:20:08]}
{[%emt 00:00:02]} 3. d4 {[%clk 00:20:16]} {[%emt 00:00:02]} exd4 {[%clk
00:20:06]} {[%emt 00:00:07]} 4. Nxd4 {[%clk 00:20:19]} {[%emt 00:00:02]} Bc5
{[%clk 00:20:00]} {[%emt 00:00:11]} 5. Be3 {[%clk 00:20:22]} {[%emt 00:00:02]}
Bxd4 {[%clk 00:18:34]} {[%emt 00:01:31]} 6. Bxd4 {[%clk 00:20:26]} {[%emt
00:00:01]} Nxd4 {[%clk 00:18:16]} {[%emt 00:00:23]} 7. Qxd4 {[%clk 00:20:29]}
{[%emt 00:00:02]} Nf6 {[%clk 00:18:19]} {[%emt 00:00:02]} 8. Nc3 {[%clk
00:20:29]} {[%emt 00:00:05]} O-O {[%clk 00:18:09]} {[%emt 00:00:14]} 9. Be2
{[%clk 00:19:46]} {[%emt 00:00:48]} d6 {[%clk 00:18:04]} {[%emt 00:00:10]} 10.
O-O-O {[%clk 00:19:30]} {[%emt 00:00:22]} Be6 {[%clk 00:17:44]} {[%emt
00:00:25]} 11. f3 {[%clk 00:19:30]} {[%emt 00:00:04]} Qe7 {[%clk 00:16:57]}
{[%emt 00:00:53]} 12. g4 {[%clk 00:19:27]} {[%emt 00:00:08]} Rfd8 {[%clk
00:16:54]} {[%emt 00:00:08]} 13. Kb1 {[%clk 00:19:20]} {[%emt 00:00:12]} c5
{[%clk 00:16:14]} {[%emt 00:00:44]} 14. Qe3 {[%clk 00:19:07]} {[%emt 00:00:18]}
a6 {[%clk 00:14:42]} {[%emt 00:01:38]} 15. g5 {[%clk 00:19:04]} {[%emt
00:00:07]} Ne8 {[%clk 00:14:11]} {[%emt 00:00:36]} 16. f4 {[%clk 00:19:07]}
{[%emt 00:00:03]} b5 {[%clk 00:14:01]} {[%emt 00:00:15]} 17. Bf3 {[%clk
00:17:29]} b4 {[%clk 00:12:52]} {[%emt 00:02:56]} 18. Ne2 {[%clk 00:17:33]} Ra7
{[%clk 00:12:34]} {[%emt 00:00:25]} 19. Ng3 {[%clk 00:17:30]} f5 {[%clk
00:08:00]} {[%emt 00:04:47]} 20. Rhe1 {[%clk 00:16:19]} Qf8 {[%clk 00:03:44]}
{[%emt 00:05:36]} 21. exf5 {[%emt 00:01:20]} Bf7 {[%emt 00:04:38]} 22. h4
{[%clk 00:11:31]} {[%emt 00:00:05]} Nc7 {[%clk 00:01:08]} {[%emt 00:01:42]} 23.
h5 {[%clk 00:09:21]} g6 {[%clk 00:00:43]} {[%emt 00:02:44]} 24. hxg6 {[%clk
00:09:13]} {[%emt 00:00:14]} hxg6 {[%clk 00:00:46]} {[%emt 00:00:01]} 25. fxg6
{[%clk 00:08:30]} {[%emt 00:00:49]} Bxg6 {[%clk 00:00:48]} {[%emt 00:00:03]} 26.
Be4 {[%clk 00:07:30]} {[%emt 00:01:05]} Re8 {[%clk 00:00:52]} 27. Qd3 {[%clk
00:07:12]} {[%emt 00:00:22]} Bxe4 {[%clk 00:00:50]} {[%emt 00:00:07]} 28. Nxe4
{[%clk 00:07:16]} {[%emt 00:00:02]} Rxe4 {[%clk 00:00:19]} {[%emt 00:00:36]} 29.
Qxe4 {[%clk 00:07:16]} {[%emt 00:00:04]} d5 {[%clk 00:00:21]} {[%emt 00:00:04]}
30. Qg6+ {[%clk 00:07:18]} {[%emt 00:00:02]} Qg7 {[%clk 00:00:24]} {[%emt
00:00:02]} 31. Qb6 {[%clk 00:07:09]} {[%emt 00:00:14]} Nb5 {[%clk 00:00:25]}
{[%emt 00:00:06]} 32. Re8+ {[%clk 00:07:06]} {[%emt 00:00:07]} Kf7 {[%clk
00:00:25]} {[%emt 00:00:05]} 33. Qe6# {[%clk 00:07:07]} {[%emt 00:00:04]} 1-0

[Event "MČR juniorů a juniorek v rapid šachu 2023"]
[Site "Czech Republic"]
[Date "2023.09.24"]
[Round "8.3"]
[White "Prazak, Daniel"]
[Black "Jun, Rudolf"]
[Result "1/2-1/2"]
[TimeControl "20 min + 5 sec per move"]
[WhiteFideId "23709456"]
[BlackFideId "376612"]
[WhiteElo "2029"]
[BlackElo "2151"]

1. d4 {[%clk 00:20:08]} {[%emt 00:00:01]} Nf6 {[%clk 00:20:09]} {[%emt
00:00:02]} 2. Nf3 {[%clk 00:20:10]} {[%emt 00:00:03]} e6 {[%clk 00:20:11]}
{[%emt 00:00:03]} 3. c4 {[%clk 00:19:53]} {[%emt 00:00:22]} c5 {[%clk
00:20:13]} {[%emt 00:00:03]} 4. d5 {[%clk 00:19:35]} {[%emt 00:00:24]} exd5
{[%clk 00:20:17]} {[%emt 00:00:01]} 5. cxd5 {[%clk 00:19:39]} {[%emt 00:00:01]}
d6 {[%clk 00:20:22]} 6. Nc3 {[%clk 00:19:43]} a6 {[%clk 00:20:26]} {[%emt
00:00:01]} 7. a4 {[%clk 00:19:35]} {[%emt 00:00:13]} g6 {[%clk 00:20:29]}
{[%emt 00:00:01]} 8. Nd2 {[%clk 00:19:36]} {[%emt 00:00:05]} Nbd7 {[%clk
00:19:53]} {[%emt 00:00:41]} 9. e4 {[%clk 00:18:55]} {[%emt 00:00:45]} Bg7
{[%clk 00:19:55]} {[%emt 00:00:03]} 10. Be2 {[%clk 00:18:59]} {[%emt 00:00:02]}
O-O {[%clk 00:19:58]} {[%emt 00:00:02]} 11. O-O {[%clk 00:19:01]} {[%emt
00:00:02]} Re8 {[%clk 00:19:27]} {[%emt 00:00:36]} 12. f3 {[%clk 00:18:28]}
{[%emt 00:00:38]} Nh5 {[%clk 00:18:50]} {[%emt 00:00:42]} 13. Nc4 {[%clk
00:18:11]} {[%emt 00:00:22]} Bd4+ {[%clk 00:18:16]} {[%emt 00:00:40]} 14. Kh1
{[%clk 00:17:27]} {[%emt 00:00:48]} Ne5 {[%clk 00:16:57]} {[%emt 00:01:24]} 15.
g4 {[%clk 00:15:27]} {[%emt 00:02:04]} Ng7 {[%clk 00:12:53]} {[%emt 00:04:11]}
16. Bf4 {[%clk 00:09:25]} {[%emt 00:06:06]} h5 {[%clk 00:11:57]} {[%emt
00:01:01]} 17. Nxe5 {[%clk 00:05:43]} {[%emt 00:03:46]} dxe5 {[%clk 00:11:37]}
{[%emt 00:00:26]} 18. Bh6 {[%clk 00:05:18]} {[%emt 00:00:30]} h4 {[%clk
00:10:09]} {[%emt 00:01:33]} 19. Qd2 {[%clk 00:04:14]} {[%emt 00:01:10]} f6
{[%clk 00:10:13]} 20. f4 {[%clk 00:02:50]} {[%emt 00:01:29]} Qd6 {[%clk
00:10:12]} {[%emt 00:00:07]} 21. f5 {[%clk 00:02:12]} {[%emt 00:00:42]} Bd7
{[%clk 00:06:38]} {[%emt 00:03:39]} 22. fxg6 {[%clk 00:01:43]} {[%emt
00:00:34]} Rf8 {[%clk 00:06:42]} 23. Rf5 {[%clk 00:01:02]} {[%emt 00:00:46]}
Be8 {[%clk 00:06:16]} {[%emt 00:00:31]} 24. Bxg7 {[%clk 00:01:03]} {[%emt
00:00:04]} Kxg7 {[%clk 00:06:19]} {[%emt 00:00:03]} 25. Bd3 {[%clk 00:00:17]}
{[%emt 00:00:52]} Bxg6 {[%clk 00:06:18]} {[%emt 00:00:06]} 26. Rf3 {[%clk
00:00:20]} b5 {[%clk 00:06:01]} {[%emt 00:00:23]} 27. axb5 {[%clk 00:00:17]}
{[%emt 00:00:08]} axb5 {[%clk 00:06:05]} {[%emt 00:00:01]} 28. Rxa8 {[%clk
00:00:14]} {[%emt 00:00:08]} Rxa8 {[%clk 00:06:08]} {[%emt 00:00:02]} 29. Nxb5
{[%clk 00:00:14]} {[%emt 00:00:04]} Qd7 {[%clk 00:06:12]} 30. Nxd4 {[%clk
00:00:15]} {[%emt 00:00:04]} cxd4 {[%clk 00:06:12]} {[%emt 00:00:05]} 31. h3
{[%clk 00:00:18]} {[%emt 00:00:02]} Rf8 {[%clk 00:04:14]} {[%emt 00:02:04]} 32.
Kg2 {[%clk 00:00:19]} {[%emt 00:00:03]} Qe7 {[%clk 00:04:00]} {[%emt 00:00:19]}
33. Rf2 {[%clk 00:00:09]} {[%emt 00:00:15]} Rb8 {[%clk 00:03:56]} {[%emt
00:00:10]} 34. Qc2 {[%clk 00:00:08]} {[%emt 00:00:06]} Rb7 {[%clk 00:03:40]}
{[%emt 00:00:20]} 35. Qc6 {[%clk 00:00:08]} {[%emt 00:00:05]} Rc7 {[%clk
00:03:05]} {[%emt 00:00:40]} 36. Qb6 {[%clk 00:00:10]} {[%emt 00:00:03]} Rb7
{[%clk 00:02:54]} {[%emt 00:00:16]} 37. Qa5 {[%clk 00:00:09]} {[%emt 00:00:06]}
Rb3 {[%clk 00:02:49]} {[%emt 00:00:10]} 38. Rc2 {[%clk 00:00:09]} {[%emt
00:00:05]} Kh6 {[%clk 00:02:13]} {[%emt 00:00:41]} 39. Qd2+ {[%clk 00:00:13]}
Kg7 {[%clk 00:02:18]} 40. Qa5 {[%clk 00:00:08]} {[%emt 00:00:10]} Kh6 {[%clk
00:02:21]} {[%emt 00:00:01]} 41. Qd2+ {[%clk 00:00:12]} Kg7 {[%clk 00:02:25]}
42. Qa5 {[%clk 00:00:16]} Bf7 {[%clk 00:02:21]} {[%emt 00:00:09]} 43. Qd2
{[%clk 00:00:07]} {[%emt 00:00:15]} Bg6 {[%clk 00:01:39]} {[%emt 00:00:46]} 44.
Qa5 {[%clk 00:00:10]} {[%emt 00:00:01]} Kh6 {[%clk 00:00:54]} {[%emt 00:00:52]}
45. Qd2+ {[%clk 00:00:14]} 1/2-1/2